[Event "Titled Tuesday Blitz March 01 Early 2022"]
[White "Nilsen, Tobias Lang"]
[Black "Stefanov, Plamen"]
[WhiteFideId "1521624"]
[BlackFideId "2900980"]
[WhiteElo "2013"]
[BlackElo "2137"]
[Result "0-1"]
[Round "04"]
[TimeControl "180+1"]
[Date "2022.03.01"]
[WhiteClock "0:00:18"]
[BlackClock "0:00:21"]

1. f4 {[%clk 0:03:00]}  d5 {[%clk 0:02:57]} 2. Nf3 {[%clk 0:03:00]}  c5 {[%clk 0:02:57]} 3. g3 {[%clk 0:03:00]}  Nc6 {[%clk 0:02:58]} 4. Bg2 {[%clk 0:03:01]}  g6 {[%clk 0:02:58]} 5. O-O {[%clk 0:03:01]}  Bg7 {[%clk 0:02:59]} 6. d3 {[%clk 0:03:02]}  Nf6 {[%clk 0:02:58]} 7. Nc3 {[%clk 0:03:02]}  Bg4 {[%clk 0:02:52]} 8. e4 {[%clk 0:03:02]}  Nd4 {[%clk 0:02:46]} 9. e5 {[%clk 0:02:48]}  Nh5 {[%clk 0:02:41]} 10. Ne2 {[%clk 0:02:29]}  Nxe2+ {[%clk 0:02:24]} 11. Qxe2 {[%clk 0:02:26]}  Qd7 {[%clk 0:02:25]} 12. Qf2 {[%clk 0:02:24]}  b6 {[%clk 0:02:22]} 13. Bd2 {[%clk 0:02:21]}  O-O {[%clk 0:02:21]} 14. Rae1 {[%clk 0:02:19]}  f6 {[%clk 0:02:18]} 15. Qe3 {[%clk 0:01:52]}  Rae8 {[%clk 0:02:14]} 16. e6 {[%clk 0:01:52]}  Qd6 {[%clk 0:02:06]} 17. h3 {[%clk 0:01:51]}  Bxf3 {[%clk 0:01:59]} 18. Qxf3 {[%clk 0:01:52]}  f5 {[%clk 0:01:57]} 19. g4 {[%clk 0:01:51]}  fxg4 {[%clk 0:01:56]} 20. hxg4 {[%clk 0:01:52]}  Bd4+ {[%clk 0:01:54]} 21. Kh1 {[%clk 0:01:47]}  Ng7 {[%clk 0:01:43]} 22. c3 {[%clk 0:01:46]}  Bf6 {[%clk 0:01:42]} 23. Qxd5 {[%clk 0:01:37]}  Qxd5 {[%clk 0:01:30]} 24. Bxd5 {[%clk 0:01:38]}  Bh4 {[%clk 0:01:31]} 25. Re2 {[%clk 0:01:26]}  Rd8 {[%clk 0:01:29]} 26. c4 {[%clk 0:01:26]}  g5 {[%clk 0:01:19]} 27. f5 {[%clk 0:01:24]}  Ne8 {[%clk 0:01:19]} 28. Bc3 {[%clk 0:01:22]}  Nf6 {[%clk 0:01:18]} 29. Bxf6 {[%clk 0:01:22]}  Rxf6 {[%clk 0:01:18]} 30. Kg2 {[%clk 0:01:22]}  h5 {[%clk 0:01:09]} 31. Kh3 {[%clk 0:01:19]}  hxg4+ {[%clk 0:01:07]} 32. Kxg4 {[%clk 0:01:20]}  Rh6 {[%clk 0:01:08]} 33. f6 {[%clk 0:01:17]}  Kf8 {[%clk 0:01:00]} 34. fxe7+ {[%clk 0:01:09]}  Kxe7 {[%clk 0:01:00]} 35. Rf7+ {[%clk 0:01:10]}  Kd6 {[%clk 0:01:00]} 36. e7 {[%clk 0:01:06]}  Re8 {[%clk 0:01:00]} 37. Rf8 {[%clk 0:00:42]}  Rxe7 {[%clk 0:00:55]} 38. Rxe7 {[%clk 0:00:34]}  Kxe7 {[%clk 0:00:54]} 39. Ra8 {[%clk 0:00:35]}  Kd6 {[%clk 0:00:52]} 40. Rxa7 {[%clk 0:00:35]}  Ke5 {[%clk 0:00:52]} 41. a4 {[%clk 0:00:28]}  Rf6 {[%clk 0:00:41]} 42. Rf7 {[%clk 0:00:27]}  Rxf7 {[%clk 0:00:37]} 43. Bxf7 {[%clk 0:00:28]}  Kf6 {[%clk 0:00:38]} 44. Bd5 {[%clk 0:00:28]}  Be1 {[%clk 0:00:37]} 45. d4 {[%clk 0:00:24]}  cxd4 {[%clk 0:00:33]} 46. Be4 {[%clk 0:00:25]}  Bf2 {[%clk 0:00:31]} 47. b4 {[%clk 0:00:22]}  Be1 {[%clk 0:00:30]} 48. a5 {[%clk 0:00:22]}  bxa5 {[%clk 0:00:30]} 49. b5 {[%clk 0:00:23]}  Bb4 {[%clk 0:00:27]} 50. b6 {[%clk 0:00:22]}  Bd6 {[%clk 0:00:27]} 51. b7 {[%clk 0:00:20]}  a4 {[%clk 0:00:23]} 52. c5 {[%clk 0:00:20]}  Bb8 {[%clk 0:00:23]} 53. Kf3 {[%clk 0:00:20]}  Ke5 {[%clk 0:00:22]} 54. Bc2 {[%clk 0:00:20]}  a3 {[%clk 0:00:22]} 55. c6 {[%clk 0:00:20]}  Kd6 {[%clk 0:00:21]} 56. Bb3 {[%clk 0:00:19]}  Kxc6 {[%clk 0:00:20]} 57. Ke4 {[%clk 0:00:20]}  Kxb7 {[%clk 0:00:20]} 58. Kxd4 {[%clk 0:00:20]}  Kb6 {[%clk 0:00:20]} 59. Ke4 {[%clk 0:00:20]}  Ka5 {[%clk 0:00:20]} 60. Kf5 {[%clk 0:00:20]}  Bf4 {[%clk 0:00:20]} 61. Ke4 {[%clk 0:00:19]}  Kb4 {[%clk 0:00:21]} 62. Be6 {[%clk 0:00:18]}  Kc3 {[%clk 0:00:21]} 0-1


[Site "https://www.chess.com"]

[Event "Titled Tuesday Blitz March 01 Early 2022"]
[White "Ooi, Zhi Yang"]
[Black "Boruchovsky, Avital"]
[WhiteFideId "5709270"]
[BlackFideId "2800055"]
[WhiteElo "1802"]
[BlackElo "2469"]
[Result "0-1"]
[Round "04"]
[TimeControl "180+1"]
[Date "2022.03.01"]
[WhiteClock "0:00:13"]
[BlackClock "0:00:52"]

1. d4 {[%clk 0:03:00]}  Nf6 {[%clk 0:02:57]} 2. Nc3 {[%clk 0:02:58]}  d5 {[%clk 0:02:57]} 3. Bg5 {[%clk 0:02:57]}  c5 {[%clk 0:02:53]} 4. Bxf6 {[%clk 0:02:52]}  gxf6 {[%clk 0:02:52]} 5. e3 {[%clk 0:02:50]}  Nc6 {[%clk 0:02:48]} 6. Qh5 {[%clk 0:02:47]}  cxd4 {[%clk 0:02:41]} 7. exd4 {[%clk 0:02:46]}  e6 {[%clk 0:02:34]} 8. Nf3 {[%clk 0:02:36]}  Bb4 {[%clk 0:02:28]} 9. Bd3 {[%clk 0:02:30]}  Qa5 {[%clk 0:02:27]} 10. O-O {[%clk 0:02:22]}  Bxc3 {[%clk 0:02:27]} 11. bxc3 {[%clk 0:02:23]}  Qxc3 {[%clk 0:02:27]} 12. Qh6 {[%clk 0:01:57]}  Nxd4 {[%clk 0:02:23]} 13. Nxd4 {[%clk 0:01:51]}  Qxd4 {[%clk 0:02:24]} 14. Qg7 {[%clk 0:01:50]}  Rf8 {[%clk 0:02:20]} 15. Rab1 {[%clk 0:01:48]}  b6 {[%clk 0:02:14]} 16. Rfd1 {[%clk 0:01:41]}  Bd7 {[%clk 0:02:08]} 17. c4 {[%clk 0:01:29]}  dxc4 {[%clk 0:01:52]} 18. Bxh7 {[%clk 0:01:18]}  Qe5 {[%clk 0:01:52]} 19. Qg4 {[%clk 0:01:04]}  f5 {[%clk 0:01:26]} 20. Qxc4 {[%clk 0:00:56]}  Rh8 {[%clk 0:01:25]} 21. Rxd7 {[%clk 0:00:20]}  Kxd7 {[%clk 0:01:22]} 22. Rd1+ {[%clk 0:00:19]}  Ke7 {[%clk 0:01:20]} 23. Qh4+ {[%clk 0:00:19]}  Kf8 {[%clk 0:01:03]} 24. Qh6+ {[%clk 0:00:13]}  Qg7 {[%clk 0:00:54]} 25. Qh4 {[%clk 0:00:13]}  Qxh7 {[%clk 0:00:52]} 0-1


[Site "https://www.chess.com"]

[Event "Titled Tuesday Blitz March 01 Early 2022"]
[White "Pajeken, Jakob Leon"]
[Black "Kanyamarala, Trisha"]
[WhiteFideId "12942839"]
[BlackFideId "45004722"]
[WhiteElo "2351"]
[BlackElo "2002"]
[Result "1-0"]
[Round "04"]
[TimeControl "180+1"]
[Date "2022.03.01"]
[WhiteClock "0:00:20"]
[BlackClock "0:00:01"]

1. d4 {[%clk 0:03:00]}  Nf6 {[%clk 0:02:59]} 2. Nf3 {[%clk 0:03:00]}  d5 {[%clk 0:02:58]} 3. c4 {[%clk 0:03:01]}  e6 {[%clk 0:02:58]} 4. e3 {[%clk 0:03:01]}  b6 {[%clk 0:02:55]} 5. Nc3 {[%clk 0:02:55]}  Bb7 {[%clk 0:02:54]} 6. cxd5 {[%clk 0:02:55]}  exd5 {[%clk 0:02:54]} 7. Bb5+ {[%clk 0:02:55]}  c6 {[%clk 0:02:54]} 8. Bd3 {[%clk 0:02:55]}  Bd6 {[%clk 0:02:54]} 9. O-O {[%clk 0:02:54]}  Nbd7 {[%clk 0:02:54]} 10. e4 {[%clk 0:02:54]}  dxe4 {[%clk 0:02:52]} 11. Nxe4 {[%clk 0:02:55]}  Nxe4 {[%clk 0:02:47]} 12. Bxe4 {[%clk 0:02:56]}  Nf6 {[%clk 0:02:48]} 13. Bg5 {[%clk 0:02:48]}  Be7 {[%clk 0:02:46]} 14. Bxf6 {[%clk 0:02:38]}  Bxf6 {[%clk 0:02:45]} 15. Qc2 {[%clk 0:02:38]}  Rc8 {[%clk 0:02:32]} 16. Rfe1 {[%clk 0:02:37]}  O-O {[%clk 0:02:25]} 17. Bxh7+ {[%clk 0:02:37]}  Kh8 {[%clk 0:02:25]} 18. Be4 {[%clk 0:02:36]}  Qd6 {[%clk 0:02:20]} 19. Rad1 {[%clk 0:02:32]}  Rfe8 {[%clk 0:02:17]} 20. Re3 {[%clk 0:02:27]}  Re7 {[%clk 0:02:05]} 21. Rde1 {[%clk 0:02:12]}  Rce8 {[%clk 0:01:47]} 22. Qd1 {[%clk 0:01:55]}  Qf4 {[%clk 0:01:36]} 23. Qc2 {[%clk 0:01:37]}  g6 {[%clk 0:01:22]} 24. g3 {[%clk 0:01:27]}  Qd6 {[%clk 0:01:16]} 25. Qc3 {[%clk 0:01:19]}  c5 {[%clk 0:00:59]} 26. Bxb7 {[%clk 0:01:12]}  cxd4 {[%clk 0:00:59]} 27. Rxe7 {[%clk 0:01:09]}  dxc3 {[%clk 0:00:50]} 28. Rxe8+ {[%clk 0:01:09]}  Kg7 {[%clk 0:00:50]} 29. bxc3 {[%clk 0:01:06]}  Bxc3 {[%clk 0:00:50]} 30. R1e3 {[%clk 0:00:59]}  Bf6 {[%clk 0:00:45]} 31. Kg2 {[%clk 0:00:57]}  a5 {[%clk 0:00:43]} 32. a4 {[%clk 0:00:54]}  Qb4 {[%clk 0:00:30]} 33. Bc6 {[%clk 0:00:53]}  Qc5 {[%clk 0:00:26]} 34. Bb5 {[%clk 0:00:53]}  Qc2 {[%clk 0:00:24]} 35. Re2 {[%clk 0:00:52]}  Qc5 {[%clk 0:00:23]} 36. h4 {[%clk 0:00:52]}  Qc3 {[%clk 0:00:19]} 37. Ra8 {[%clk 0:00:51]}  Qc5 {[%clk 0:00:19]} 38. Ree8 {[%clk 0:00:50]}  Bc3 {[%clk 0:00:17]} 39. Rac8 {[%clk 0:00:46]}  Qb4 {[%clk 0:00:16]} 40. Rg8+ {[%clk 0:00:44]}  Kf6 {[%clk 0:00:16]} 41. Ng5 {[%clk 0:00:39]}  Bd4 {[%clk 0:00:08]} 42. Rc6+ {[%clk 0:00:35]}  Ke5 {[%clk 0:00:05]} 43. Re8+ {[%clk 0:00:35]}  Kf5 {[%clk 0:00:05]} 44. Bd3+ {[%clk 0:00:33]}  Kg4 {[%clk 0:00:05]} 45. f3+ {[%clk 0:00:33]}  Kh5 {[%clk 0:00:05]} 46. Kh3 {[%clk 0:00:22]}  f5 {[%clk 0:00:03]} 47. Rc7 {[%clk 0:00:20]}  Bf6 {[%clk 0:00:01]} 48. Rh7# {[%clk 0:00:20]} 1-0


[Site "https://www.chess.com"]

[Event "Titled Tuesday Blitz March 01 Early 2022"]
[White "Petrova, Irina"]
[Black "Bongo Akanga Ndjila, Barthelemy"]
[WhiteFideId "14124122"]
[BlackFideId "10609431"]
[WhiteElo "1988"]
[BlackElo "1803"]
[Result "1-0"]
[Round "04"]
[TimeControl "180+1"]
[Date "2022.03.01"]
[WhiteClock "0:01:16"]
[BlackClock "0:00:14"]

1. e4 {[%clk 0:03:00]}  g6 {[%clk 0:02:58]} 2. d4 {[%clk 0:03:00]}  d6 {[%clk 0:02:58]} 3. Nc3 {[%clk 0:03:00]}  Bg7 {[%clk 0:02:59]} 4. Be3 {[%clk 0:02:57]}  Nf6 {[%clk 0:02:59]} 5. h3 {[%clk 0:02:55]}  O-O {[%clk 0:03:00]} 6. f4 {[%clk 0:02:47]}  Nc6 {[%clk 0:03:00]} 7. Nf3 {[%clk 0:02:46]}  Nh5 {[%clk 0:02:49]} 8. Bd3 {[%clk 0:02:36]}  e5 {[%clk 0:02:40]} 9. dxe5 {[%clk 0:02:13]}  dxe5 {[%clk 0:02:38]} 10. f5 {[%clk 0:02:11]}  Nd4 {[%clk 0:02:31]} 11. Qd2 {[%clk 0:01:58]}  Ng3 {[%clk 0:02:19]} 12. Rg1 {[%clk 0:01:56]}  gxf5 {[%clk 0:02:17]} 13. O-O-O {[%clk 0:01:43]}  f4 {[%clk 0:02:12]} 14. Bxd4 {[%clk 0:01:38]}  exd4 {[%clk 0:02:10]} 15. Nd5 {[%clk 0:01:35]}  Nh5 {[%clk 0:02:03]} 16. Kb1 {[%clk 0:01:27]}  c6 {[%clk 0:02:03]} 17. Nxf4 {[%clk 0:01:27]}  Bh6 {[%clk 0:01:58]} 18. g3 {[%clk 0:01:26]}  Bxh3 {[%clk 0:01:50]} 19. Qh2 {[%clk 0:01:20]}  Bg4 {[%clk 0:01:15]} 20. Rdf1 {[%clk 0:01:17]}  Bxf4 {[%clk 0:00:36]} 21. gxf4 {[%clk 0:01:17]}  Nf6 {[%clk 0:00:21]} 22. e5 {[%clk 0:01:16]}  h5 {[%clk 0:00:17]} 23. exf6 {[%clk 0:01:15]}  Qxf6 {[%clk 0:00:17]} 24. Rxg4+ {[%clk 0:01:15]}  hxg4 {[%clk 0:00:14]} 25. Qh7# {[%clk 0:01:16]} 1-0


[Site "https://www.chess.com"]

[Event "Titled Tuesday Blitz March 01 Early 2022"]
[White "Pischal, Yulia"]
[Black "Urazayev, Arystanbek"]
[WhiteFideId "14102390"]
[BlackFideId "13709810"]
[WhiteElo "1931"]
[BlackElo "2321"]
[Result "0-1"]
[Round "04"]
[TimeControl "180+1"]
[Date "2022.03.01"]
[WhiteClock "0:00:03"]
[BlackClock "0:01:14"]

1. e4 {[%clk 0:03:00]}  e5 {[%clk 0:03:00]} 2. Nf3 {[%clk 0:02:57]}  Nc6 {[%clk 0:03:00]} 3. Nc3 {[%clk 0:02:54]}  Nf6 {[%clk 0:03:00]} 4. g3 {[%clk 0:02:54]}  Bc5 {[%clk 0:02:55]} 5. Bg2 {[%clk 0:02:54]}  O-O {[%clk 0:02:55]} 6. O-O {[%clk 0:02:54]}  d6 {[%clk 0:02:55]} 7. d3 {[%clk 0:02:54]}  h6 {[%clk 0:02:55]} 8. Be3 {[%clk 0:02:53]}  Bb6 {[%clk 0:02:54]} 9. h3 {[%clk 0:02:51]}  Be6 {[%clk 0:02:54]} 10. Kh2 {[%clk 0:02:52]}  Re8 {[%clk 0:02:54]} 11. Qd2 {[%clk 0:02:47]}  d5 {[%clk 0:02:52]} 12. exd5 {[%clk 0:02:47]}  Nxd5 {[%clk 0:02:53]} 13. Bxb6 {[%clk 0:02:35]}  axb6 {[%clk 0:02:53]} 14. a3 {[%clk 0:02:33]}  Nxc3 {[%clk 0:02:44]} 15. Qxc3 {[%clk 0:02:32]}  Bd5 {[%clk 0:02:44]} 16. Rae1 {[%clk 0:02:22]}  Qd6 {[%clk 0:02:44]} 17. Qd2 {[%clk 0:02:08]}  Re7 {[%clk 0:02:41]} 18. Nh4 {[%clk 0:02:03]}  Nd4 {[%clk 0:02:23]} 19. Bxd5 {[%clk 0:01:37]}  Qxd5 {[%clk 0:02:21]} 20. c3 {[%clk 0:01:37]}  Nc6 {[%clk 0:02:17]} 21. Nf5 {[%clk 0:01:30]}  Rd7 {[%clk 0:02:17]} 22. Re3 {[%clk 0:01:19]}  Rad8 {[%clk 0:02:17]} 23. Qe2 {[%clk 0:01:00]}  Qe6 {[%clk 0:02:16]} 24. g4 {[%clk 0:00:48]}  Qb3 {[%clk 0:01:56]} 25. Ng3 {[%clk 0:00:39]}  Qb5 {[%clk 0:01:51]} 26. f4 {[%clk 0:00:30]}  Rxd3 {[%clk 0:01:44]} 27. Rxd3 {[%clk 0:00:20]}  Qxd3 {[%clk 0:01:43]} 28. Qf2 {[%clk 0:00:16]}  e4 {[%clk 0:01:42]} 29. Re1 {[%clk 0:00:16]}  Re8 {[%clk 0:01:29]} 30. Re3 {[%clk 0:00:16]}  Qb1 {[%clk 0:01:28]} 31. Qe2 {[%clk 0:00:15]}  Qc1 {[%clk 0:01:17]} 32. Nxe4 {[%clk 0:00:12]}  Kf8 {[%clk 0:01:17]} 33. Kg2 {[%clk 0:00:06]}  g6 {[%clk 0:01:16]} 34. Kf3 {[%clk 0:00:05]}  Qh1+ {[%clk 0:01:13]} 35. Qg2 {[%clk 0:00:05]}  Qxg2+ {[%clk 0:01:12]} 36. Kxg2 {[%clk 0:00:04]}  f5 {[%clk 0:01:13]} 37. gxf5 {[%clk 0:00:04]}  gxf5 {[%clk 0:01:14]} 38. Kf3 {[%clk 0:00:03]}  fxe4+ {[%clk 0:01:14]} 0-1


[Site "https://www.chess.com"]

[Event "Titled Tuesday Blitz March 01 Early 2022"]
[White "Polster, Christian"]
[Black "Golubev, Mikhail"]
[WhiteFideId "12965081"]
[BlackFideId "14100983"]
[WhiteElo "2316"]
[BlackElo "2374"]
[Result "0-1"]
[Round "04"]
[TimeControl "180+1"]
[Date "2022.03.01"]
[WhiteClock "0:00:07"]
[BlackClock "0:01:10"]

1. e4 {[%clk 0:03:00]}  c5 {[%clk 0:02:59]} 2. Nf3 {[%clk 0:02:56]}  d6 {[%clk 0:03:00]} 3. d4 {[%clk 0:02:54]}  Nf6 {[%clk 0:03:00]} 4. Nc3 {[%clk 0:02:51]}  cxd4 {[%clk 0:03:00]} 5. Nxd4 {[%clk 0:02:51]}  g6 {[%clk 0:03:00]} 6. Be3 {[%clk 0:02:50]}  Bg7 {[%clk 0:03:00]} 7. f3 {[%clk 0:02:50]}  a6 {[%clk 0:03:00]} 8. Qd2 {[%clk 0:02:50]}  Nbd7 {[%clk 0:03:00]} 9. Bh6 {[%clk 0:02:43]}  Bxh6 {[%clk 0:02:54]} 10. Qxh6 {[%clk 0:02:44]}  b5 {[%clk 0:02:52]} 11. O-O-O {[%clk 0:02:39]}  Bb7 {[%clk 0:02:45]} 12. Kb1 {[%clk 0:02:38]}  Rc8 {[%clk 0:02:44]} 13. h4 {[%clk 0:02:37]}  Rxc3 {[%clk 0:02:42]} 14. bxc3 {[%clk 0:02:34]}  Qc7 {[%clk 0:02:32]} 15. h5 {[%clk 0:02:24]}  Qxc3 {[%clk 0:02:21]} 16. hxg6 {[%clk 0:02:18]}  fxg6 {[%clk 0:02:21]} 17. Qd2 {[%clk 0:01:39]}  Qxd2 {[%clk 0:02:21]} 18. Rxd2 {[%clk 0:01:40]}  Nc5 {[%clk 0:02:20]} 19. g4 {[%clk 0:01:36]}  Nfxe4 {[%clk 0:02:07]} 20. fxe4 {[%clk 0:01:13]}  Nxe4 {[%clk 0:02:07]} 21. Rg2 {[%clk 0:00:37]}  e5 {[%clk 0:01:48]} 22. Nb3 {[%clk 0:00:22]}  Rf8 {[%clk 0:01:29]} 23. Kc1 {[%clk 0:00:18]}  Nc3 {[%clk 0:01:13]} 24. Rhg1 {[%clk 0:00:10]}  Rxf1+ {[%clk 0:01:10]} 25. Rxf1 {[%clk 0:00:10]}  Bxg2 {[%clk 0:01:11]} 26. Rf2 {[%clk 0:00:08]}  Bd5 {[%clk 0:01:11]} 27. Kb2 {[%clk 0:00:07]}  Nd1+ {[%clk 0:01:10]} 0-1


[Site "https://www.chess.com"]

[Event "Titled Tuesday Blitz March 01 Early 2022"]
[White "Prado Lobo, Jonas"]
[Black "Boraso, Alessio"]
[WhiteFideId "32050666"]
[BlackFideId "848077"]
[WhiteElo "2199"]
[BlackElo "2277"]
[Result "1/2-1/2"]
[Round "04"]
[TimeControl "180+1"]
[Date "2022.03.01"]
[WhiteClock "0:00:13"]
[BlackClock "0:00:19"]

1. d4 {[%clk 0:03:00]}  d5 {[%clk 0:02:58]} 2. Nc3 {[%clk 0:02:59]}  Nf6 {[%clk 0:02:57]} 3. Bf4 {[%clk 0:02:59]}  a6 {[%clk 0:02:49]} 4. e3 {[%clk 0:02:57]}  c5 {[%clk 0:02:48]} 5. Nf3 {[%clk 0:02:56]}  Nc6 {[%clk 0:02:45]} 6. dxc5 {[%clk 0:02:53]}  e6 {[%clk 0:02:39]} 7. Bd3 {[%clk 0:02:53]}  Bxc5 {[%clk 0:02:38]} 8. O-O {[%clk 0:02:53]}  O-O {[%clk 0:02:35]} 9. e4 {[%clk 0:02:54]}  dxe4 {[%clk 0:02:14]} 10. Nxe4 {[%clk 0:02:55]}  Nxe4 {[%clk 0:02:14]} 11. Bxe4 {[%clk 0:02:54]}  Bd7 {[%clk 0:02:05]} 12. Qe2 {[%clk 0:02:14]}  Qf6 {[%clk 0:01:44]} 13. Bg5 {[%clk 0:01:56]}  Nd4 {[%clk 0:01:12]} 14. Qd2 {[%clk 0:01:31]}  Nxf3+ {[%clk 0:01:06]} 15. Bxf3 {[%clk 0:00:58]}  Qf5 {[%clk 0:00:59]} 16. Qxd7 {[%clk 0:00:54]}  Qxg5 {[%clk 0:00:59]} 17. Qxb7 {[%clk 0:00:48]}  Rab8 {[%clk 0:00:57]} 18. Qxa6 {[%clk 0:00:46]}  Rxb2 {[%clk 0:00:55]} 19. Qc4 {[%clk 0:00:45]}  Rc8 {[%clk 0:00:49]} 20. Qe4 {[%clk 0:00:26]}  g6 {[%clk 0:00:35]} 21. a4 {[%clk 0:00:23]}  Qf6 {[%clk 0:00:28]} 22. a5 {[%clk 0:00:19]}  Ba7 {[%clk 0:00:26]} 23. c4 {[%clk 0:00:17]}  Qd4 {[%clk 0:00:23]} 24. Qxd4 {[%clk 0:00:12]}  Bxd4 {[%clk 0:00:24]} 25. a6 {[%clk 0:00:11]}  Ba7 {[%clk 0:00:18]} 26. Rfc1 {[%clk 0:00:11]}  Rxf2 {[%clk 0:00:14]} 27. c5 {[%clk 0:00:09]}  Rxc5 {[%clk 0:00:11]} 28. Rxc5 {[%clk 0:00:07]}  Bxc5 {[%clk 0:00:11]} 29. Kh1 {[%clk 0:00:05]}  Ba7 {[%clk 0:00:10]} 30. h3 {[%clk 0:00:05]}  Rb2 {[%clk 0:00:09]} 31. Rc1 {[%clk 0:00:04]}  Ra2 {[%clk 0:00:05]} 32. Bb7 {[%clk 0:00:04]}  Kg7 {[%clk 0:00:04]} 33. Kh2 {[%clk 0:00:04]}  Bb8+ {[%clk 0:00:04]} 34. Kg1 {[%clk 0:00:04]}  Ba7+ {[%clk 0:00:04]} 35. Kh2 {[%clk 0:00:04]}  h5 {[%clk 0:00:05]} 36. Rc3 {[%clk 0:00:04]}  Bb8+ {[%clk 0:00:05]} 37. Kg1 {[%clk 0:00:03]}  Ba7+ {[%clk 0:00:05]} 38. Kh2 {[%clk 0:00:04]}  h4 {[%clk 0:00:06]} 39. Rc4 {[%clk 0:00:02]}  Bb8+ {[%clk 0:00:06]} 40. Kg1 {[%clk 0:00:02]}  Bg3 {[%clk 0:00:06]} 41. Kf1 {[%clk 0:00:02]}  Rf2+ {[%clk 0:00:07]} 42. Ke1 {[%clk 0:00:03]}  Rc2+ {[%clk 0:00:05]} 43. Kd1 {[%clk 0:00:03]}  Rxc4 {[%clk 0:00:02]} 44. a7 {[%clk 0:00:04]}  Ra4 {[%clk 0:00:02]} 45. a8=Q {[%clk 0:00:04]}  Rxa8 {[%clk 0:00:03]} 46. Bxa8 {[%clk 0:00:05]}  Kf6 {[%clk 0:00:03]} 47. Ke2 {[%clk 0:00:06]}  Ke5 {[%clk 0:00:04]} 48. Kf3 {[%clk 0:00:07]}  f5 {[%clk 0:00:03]} 49. Bb7 {[%clk 0:00:07]}  g5 {[%clk 0:00:04]} 50. Bc8 {[%clk 0:00:08]}  Kd5 {[%clk 0:00:03]} 51. Bd7 {[%clk 0:00:08]}  Kd6 {[%clk 0:00:03]} 52. Bc8 {[%clk 0:00:08]}  Ke7 {[%clk 0:00:03]} 53. Ke3 {[%clk 0:00:08]}  Kf6 {[%clk 0:00:02]} 54. Kf3 {[%clk 0:00:09]}  e5 {[%clk 0:00:03]} 55. Bd7 {[%clk 0:00:09]}  e4+ {[%clk 0:00:03]} 56. Ke3 {[%clk 0:00:09]}  Ke5 {[%clk 0:00:03]} 57. Bc8 {[%clk 0:00:09]}  Bh2 {[%clk 0:00:04]} 58. Bb7 {[%clk 0:00:08]}  Bg1+ {[%clk 0:00:04]} 59. Ke2 {[%clk 0:00:08]}  Ba7 {[%clk 0:00:05]} 60. Bc6 {[%clk 0:00:08]}  Kf4 {[%clk 0:00:05]} 61. Kf1 {[%clk 0:00:07]}  g4 {[%clk 0:00:03]} 62. hxg4 {[%clk 0:00:08]}  fxg4 {[%clk 0:00:04]} 63. Bb7 {[%clk 0:00:07]}  Bb6 {[%clk 0:00:02]} 64. Bc6 {[%clk 0:00:08]}  Bc5 {[%clk 0:00:03]} 65. Bb7 {[%clk 0:00:08]}  Ba7 {[%clk 0:00:04]} 66. Bc6 {[%clk 0:00:08]}  Bd4 {[%clk 0:00:04]} 67. Bb7 {[%clk 0:00:09]}  Be5 {[%clk 0:00:05]} 68. Bc6 {[%clk 0:00:09]}  Bd6 {[%clk 0:00:06]} 69. Bb7 {[%clk 0:00:09]}  Be7 {[%clk 0:00:07]} 70. Bc6 {[%clk 0:00:10]}  Bf8 {[%clk 0:00:08]} 71. Bb7 {[%clk 0:00:10]}  Bg7 {[%clk 0:00:09]} 72. Bc6 {[%clk 0:00:11]}  Bf6 {[%clk 0:00:10]} 73. Bb7 {[%clk 0:00:12]}  Be5 {[%clk 0:00:11]} 74. Bc6 {[%clk 0:00:12]}  Bd4 {[%clk 0:00:11]} 75. Bb7 {[%clk 0:00:13]}  Bb6 {[%clk 0:00:12]} 76. Bc6 {[%clk 0:00:13]}  e3 {[%clk 0:00:12]} 77. Bb5 {[%clk 0:00:12]}  Kg3 {[%clk 0:00:13]} 78. Bc6 {[%clk 0:00:11]}  Ba7 {[%clk 0:00:13]} 79. Ke2 {[%clk 0:00:11]}  Bc5 {[%clk 0:00:12]} 80. Kf1 {[%clk 0:00:11]}  Bd4 {[%clk 0:00:13]} 81. Bb7 {[%clk 0:00:09]}  Ba7 {[%clk 0:00:14]} 82. Bc6 {[%clk 0:00:09]}  Bb6 {[%clk 0:00:12]} 83. Bb5 {[%clk 0:00:09]}  Bc7 {[%clk 0:00:12]} 84. Bc6 {[%clk 0:00:09]}  Bf4 {[%clk 0:00:13]} 85. Bd5 {[%clk 0:00:09]}  Bg5 {[%clk 0:00:14]} 86. Bc6 {[%clk 0:00:10]}  Bh6 {[%clk 0:00:14]} 87. Bd5 {[%clk 0:00:10]}  Kf4 {[%clk 0:00:14]} 88. Bc6 {[%clk 0:00:10]}  Ke5 {[%clk 0:00:15]} 89. Ke2 {[%clk 0:00:11]}  Kf4 {[%clk 0:00:15]} 90. Kf1 {[%clk 0:00:10]}  Bg7 {[%clk 0:00:15]} 91. Bb7 {[%clk 0:00:09]}  Bb2 {[%clk 0:00:16]} 92. Bc6 {[%clk 0:00:10]}  Bc1 {[%clk 0:00:16]} 93. Bb7 {[%clk 0:00:10]}  Bd2 {[%clk 0:00:17]} 94. Bc6 {[%clk 0:00:10]}  Kg3 {[%clk 0:00:17]} 95. Bb7 {[%clk 0:00:11]}  Kh2 {[%clk 0:00:10]} 96. Bc8 {[%clk 0:00:06]}  h3 {[%clk 0:00:06]} 97. gxh3 {[%clk 0:00:06]}  g3 {[%clk 0:00:06]} 98. Bb7 {[%clk 0:00:06]}  Kxh3 {[%clk 0:00:06]} 99. Bf3 {[%clk 0:00:05]}  Kh4 {[%clk 0:00:05]} 100. Kg2 {[%clk 0:00:05]}  Be1 {[%clk 0:00:04]} 101. Be2 {[%clk 0:00:05]}  Bf2 {[%clk 0:00:05]} 102. Bd3 {[%clk 0:00:05]}  Kg5 {[%clk 0:00:05]} 103. Be2 {[%clk 0:00:05]}  Kf4 {[%clk 0:00:06]} 104. Bf1 {[%clk 0:00:05]}  Ke5 {[%clk 0:00:07]} 105. Kf3 {[%clk 0:00:06]}  Kd4 {[%clk 0:00:08]} 106. Be2 {[%clk 0:00:06]}  Kc3 {[%clk 0:00:09]} 107. Bb5 {[%clk 0:00:06]}  Kd2 {[%clk 0:00:10]} 108. Ba6 {[%clk 0:00:07]}  Ke1 {[%clk 0:00:11]} 109. Bb5 {[%clk 0:00:07]}  Kd2 {[%clk 0:00:07]} 110. Ba6 {[%clk 0:00:07]}  Kc2 {[%clk 0:00:08]} 111. Bb5 {[%clk 0:00:08]}  Kc3 {[%clk 0:00:09]} 112. Ba6 {[%clk 0:00:08]}  Kd4 {[%clk 0:00:09]} 113. Bb5 {[%clk 0:00:08]}  Ke5 {[%clk 0:00:10]} 114. Ba6 {[%clk 0:00:09]}  Kf6 {[%clk 0:00:11]} 115. Bb5 {[%clk 0:00:09]}  Kg5 {[%clk 0:00:12]} 116. Ba6 {[%clk 0:00:09]}  Kh4 {[%clk 0:00:13]} 117. Bf1 {[%clk 0:00:09]}  Kh5 {[%clk 0:00:12]} 118. Bg2 {[%clk 0:00:09]}  Kg5 {[%clk 0:00:12]} 119. Bf1 {[%clk 0:00:09]}  Kh4 {[%clk 0:00:12]} 120. Bg2 {[%clk 0:00:10]}  Kh5 {[%clk 0:00:13]} 121. Bf1 {[%clk 0:00:10]}  Kh6 {[%clk 0:00:13]} 122. Bg2 {[%clk 0:00:11]}  Kg7 {[%clk 0:00:14]} 123. Bf1 {[%clk 0:00:11]}  Kf6 {[%clk 0:00:15]} 124. Bg2 {[%clk 0:00:12]}  Ke5 {[%clk 0:00:16]} 125. Bf1 {[%clk 0:00:13]}  Kd4 {[%clk 0:00:17]} 126. Be2 {[%clk 0:00:13]}  Kc3 {[%clk 0:00:18]} 127. Bb5 {[%clk 0:00:13]}  Kd2 {[%clk 0:00:19]} 1/2-1/2


[Site "https://www.chess.com"]